[Event "Titled Tuesday Blitz May 4 2021"]
[White "Kretov, Evgenij"]
[Black "Rozhkov, Viacheslav"]
[WhiteFideId "4167821"]
[BlackFideId "4181484"]
[WhiteElo "2381"]
[BlackElo "2324"]
[Result "1-0"]
[Round "06"]
[TimeControl "180+1"]
[Date "2021.05.04"]
[WhiteClock "0:00:12"]
[BlackClock "0:00:01"]

1. d4 {[%clk 0:03:00]}  d5 {[%clk 0:02:58]} 2. c4 {[%clk 0:02:59]}  dxc4 {[%clk 0:02:58]} 3. Nf3 {[%clk 0:02:59]}  Nf6 {[%clk 0:02:58]} 4. e3 {[%clk 0:02:59]}  e6 {[%clk 0:02:58]} 5. Bxc4 {[%clk 0:02:59]}  a6 {[%clk 0:02:58]} 6. O-O {[%clk 0:02:59]}  c5 {[%clk 0:02:59]} 7. e4 {[%clk 0:02:58]}  cxd4 {[%clk 0:02:53]} 8. e5 {[%clk 0:02:56]}  Nd5 {[%clk 0:02:53]} 9. Qxd4 {[%clk 0:02:55]}  Nc6 {[%clk 0:02:52]} 10. Qg4 {[%clk 0:02:52]}  h5 {[%clk 0:02:52]} 11. Qe4 {[%clk 0:02:50]}  Be7 {[%clk 0:02:39]} 12. Nc3 {[%clk 0:02:46]}  Nxc3 {[%clk 0:02:36]} 13. bxc3 {[%clk 0:02:46]}  Qc7 {[%clk 0:02:27]} 14. Re1 {[%clk 0:02:32]}  b5 {[%clk 0:02:26]} 15. Bb3 {[%clk 0:02:22]}  Bb7 {[%clk 0:02:26]} 16. Bg5 {[%clk 0:02:22]}  Bxg5 {[%clk 0:02:09]} 17. Nxg5 {[%clk 0:02:21]}  O-O-O {[%clk 0:02:09]} 18. Qf4 {[%clk 0:02:09]}  Rhf8 {[%clk 0:01:46]} 19. Nxf7 {[%clk 0:02:01]}  Qxf7 {[%clk 0:01:40]} 20. Qxf7 {[%clk 0:02:00]}  Rxf7 {[%clk 0:01:40]} 21. Bxe6+ {[%clk 0:02:01]}  Rdd7 {[%clk 0:01:32]} 22. Rad1 {[%clk 0:01:55]}  Kc7 {[%clk 0:01:31]} 23. Rxd7+ {[%clk 0:01:51]}  Rxd7 {[%clk 0:01:32]} 24. Bxd7 {[%clk 0:01:51]}  Kxd7 {[%clk 0:01:33]} 25. f4 {[%clk 0:01:47]}  Ne7 {[%clk 0:01:31]} 26. Rd1+ {[%clk 0:01:42]}  Nd5 {[%clk 0:01:24]} 27. f5 {[%clk 0:01:42]}  Ke7 {[%clk 0:01:21]} 28. Rd3 {[%clk 0:01:33]}  Nf4 {[%clk 0:01:21]} 29. Re3 {[%clk 0:01:20]}  Bc8 {[%clk 0:00:34]} 30. e6 {[%clk 0:01:09]}  Bb7 {[%clk 0:00:34]} 31. Kf2 {[%clk 0:00:46]}  Nd5 {[%clk 0:00:26]} 32. Rg3 {[%clk 0:00:45]}  Kf8 {[%clk 0:00:22]} 33. Rd3 {[%clk 0:00:33]}  Ke7 {[%clk 0:00:21]} 34. h3 {[%clk 0:00:31]}  Kf6 {[%clk 0:00:22]} 35. g4 {[%clk 0:00:30]}  h4 {[%clk 0:00:20]} 36. Rd4 {[%clk 0:00:26]}  Ke7 {[%clk 0:00:06]} 37. c4 {[%clk 0:00:25]}  bxc4 {[%clk 0:00:06]} 38. Rxc4 {[%clk 0:00:26]}  Kd6 {[%clk 0:00:06]} 39. Rd4 {[%clk 0:00:21]}  Bc6 {[%clk 0:00:05]} 40. Ke1 {[%clk 0:00:20]}  Ke5 {[%clk 0:00:05]} 41. Rd2 {[%clk 0:00:19]}  Kd6 {[%clk 0:00:03]} 42. Kd1 {[%clk 0:00:18]}  Ke7 {[%clk 0:00:03]} 43. Kc2 {[%clk 0:00:19]}  Nf4 {[%clk 0:00:03]} 44. g5 {[%clk 0:00:16]}  Nxh3 {[%clk 0:00:03]} 45. Rh2 {[%clk 0:00:16]}  Nxg5 {[%clk 0:00:03]} 46. Rxh4 {[%clk 0:00:16]}  Be4+ {[%clk 0:00:02]} 47. Kc3 {[%clk 0:00:16]}  Bxf5 {[%clk 0:00:02]} 48. Rh5 {[%clk 0:00:16]}  Ne4+ {[%clk 0:00:03]} 49. Kd4 {[%clk 0:00:16]}  Nd6 {[%clk 0:00:03]} 50. Kc5 {[%clk 0:00:14]}  Bxe6 {[%clk 0:00:03]} 51. Kb6 {[%clk 0:00:14]}  g6 {[%clk 0:00:03]} 52. Rh7+ {[%clk 0:00:14]}  Kf6 {[%clk 0:00:03]} 53. Kxa6 {[%clk 0:00:14]}  Bxa2 {[%clk 0:00:04]} 54. Kb6 {[%clk 0:00:14]}  Bc4 {[%clk 0:00:05]} 55. Kc5 {[%clk 0:00:14]}  Nf5 {[%clk 0:00:04]} 56. Kxc4 {[%clk 0:00:14]}  Kg5 {[%clk 0:00:05]} 57. Kd3 {[%clk 0:00:14]}  Kf6 {[%clk 0:00:06]} 58. Ke4 {[%clk 0:00:14]}  Kg5 {[%clk 0:00:06]} 59. Ke5 {[%clk 0:00:15]}  Nh6 {[%clk 0:00:06]} 60. Ra7 {[%clk 0:00:14]}  Ng4+ {[%clk 0:00:06]} 61. Ke6 {[%clk 0:00:14]}  Kh4 {[%clk 0:00:06]} 62. Ra1 {[%clk 0:00:14]}  g5 {[%clk 0:00:05]} 63. Kf5 {[%clk 0:00:14]}  Ne3+ {[%clk 0:00:05]} 64. Ke4 {[%clk 0:00:14]}  Ng4 {[%clk 0:00:04]} 65. Ra3 {[%clk 0:00:13]}  Nf6+ {[%clk 0:00:01]} 66. Kf5 {[%clk 0:00:14]}  Nd5 {[%clk 0:00:01]} 67. Ra8 {[%clk 0:00:12]} 1-0


[Site "https://www.chess.com"]

[Event "Titled Tuesday Blitz May 4 2021"]
[White "Kubicka, Anna"]
[Black "Begunov, Konstantin"]
[WhiteFideId "1152254"]
[BlackFideId "4118510"]
[WhiteElo "2010"]
[BlackElo "2262"]
[Result "0-1"]
[Round "06"]
[TimeControl "180+1"]
[Date "2021.05.04"]
[WhiteClock "0:00:04"]
[BlackClock "0:00:07"]

1. e4 {[%clk 0:03:00]}  c5 {[%clk 0:02:59]} 2. Ne2 {[%clk 0:03:00]}  d6 {[%clk 0:02:58]} 3. g3 {[%clk 0:03:00]}  Nc6 {[%clk 0:02:57]} 4. Bg2 {[%clk 0:03:00]}  g6 {[%clk 0:02:58]} 5. c3 {[%clk 0:02:59]}  Bg7 {[%clk 0:02:58]} 6. d4 {[%clk 0:02:59]}  cxd4 {[%clk 0:02:57]} 7. cxd4 {[%clk 0:03:00]}  e6 {[%clk 0:02:47]} 8. O-O {[%clk 0:03:00]}  Nge7 {[%clk 0:02:47]} 9. Nbc3 {[%clk 0:03:00]}  O-O {[%clk 0:02:48]} 10. Be3 {[%clk 0:03:00]}  b6 {[%clk 0:02:46]} 11. Rc1 {[%clk 0:02:59]}  Ba6 {[%clk 0:02:46]} 12. Qa4 {[%clk 0:02:53]}  Na5 {[%clk 0:02:38]} 13. b3 {[%clk 0:02:36]}  Rc8 {[%clk 0:02:34]} 14. Rfd1 {[%clk 0:02:33]}  d5 {[%clk 0:02:21]} 15. exd5 {[%clk 0:02:26]}  Nxd5 {[%clk 0:02:17]} 16. Nxd5 {[%clk 0:02:21]}  exd5 {[%clk 0:01:41]} 17. Rxc8 {[%clk 0:02:13]}  Bxc8 {[%clk 0:01:29]} 18. Nf4 {[%clk 0:02:13]}  Bd7 {[%clk 0:01:19]} 19. Qa3 {[%clk 0:02:08]}  Bc6 {[%clk 0:01:19]} 20. Rc1 {[%clk 0:02:01]}  Qd7 {[%clk 0:01:08]} 21. Bh3 {[%clk 0:01:47]}  Qb7 {[%clk 0:01:00]} 22. Qd6 {[%clk 0:01:37]}  Re8 {[%clk 0:00:49]} 23. Bg2 {[%clk 0:01:24]}  Bf8 {[%clk 0:00:46]} 24. Qf6 {[%clk 0:01:22]}  Be7 {[%clk 0:00:41]} 25. Qe5 {[%clk 0:01:17]}  Ba3 {[%clk 0:00:41]} 26. Qg5 {[%clk 0:00:37]}  Bxc1 {[%clk 0:00:38]} 27. Bxc1 {[%clk 0:00:38]}  Re1+ {[%clk 0:00:36]} 28. Bf1 {[%clk 0:00:38]}  Rxc1 {[%clk 0:00:35]} 29. Nh5 {[%clk 0:00:27]}  Re1 {[%clk 0:00:19]} 30. Nf6+ {[%clk 0:00:19]}  Kg7 {[%clk 0:00:19]} 31. Nh5+ {[%clk 0:00:19]}  Kf8 {[%clk 0:00:13]} 32. Qh6+ {[%clk 0:00:10]}  Ke7 {[%clk 0:00:14]} 33. Qg5+ {[%clk 0:00:10]}  Kd7 {[%clk 0:00:12]} 34. Nf6+ {[%clk 0:00:09]}  Kc7 {[%clk 0:00:11]} 35. Qf4+ {[%clk 0:00:07]}  Kc8 {[%clk 0:00:11]} 36. Qd2 {[%clk 0:00:05]}  Qe7 {[%clk 0:00:09]} 37. Ng4 {[%clk 0:00:04]}  Bb5 {[%clk 0:00:08]} 38. Qc3+ {[%clk 0:00:03]}  Kb7 {[%clk 0:00:07]} 39. Ne3 {[%clk 0:00:04]}  Bxf1 {[%clk 0:00:07]} 40. Nxf1 {[%clk 0:00:04]}  Qe2 {[%clk 0:00:07]} 0-1


[Site "https://www.chess.com"]

[Event "Titled Tuesday Blitz May 4 2021"]
[White "Langner, Ladislav"]
[Black "Sawlin, Leonid"]
[WhiteFideId "300403"]
[BlackFideId "4689542"]
[WhiteElo "2346"]
[BlackElo "2412"]
[Result "1-0"]
[Round "06"]
[TimeControl "180+1"]
[Date "2021.05.04"]
[WhiteClock "0:01:38"]
[BlackClock "0:02:16"]

1. e4 {[%clk 0:03:00]}  d6 {[%clk 0:03:00]} 2. d4 {[%clk 0:03:00]}  Nf6 {[%clk 0:03:00]} 3. Nc3 {[%clk 0:03:01]}  Nbd7 {[%clk 0:03:00]} 4. Nf3 {[%clk 0:02:59]}  e5 {[%clk 0:03:00]} 5. Bc4 {[%clk 0:02:58]}  Be7 {[%clk 0:03:01]} 6. O-O {[%clk 0:02:58]}  c6 {[%clk 0:03:00]} 7. a4 {[%clk 0:02:57]}  Qc7 {[%clk 0:03:00]} 8. Re1 {[%clk 0:02:55]}  b6 {[%clk 0:02:58]} 9. h3 {[%clk 0:02:52]}  a6 {[%clk 0:02:57]} 10. b3 {[%clk 0:02:49]}  Bb7 {[%clk 0:02:57]} 11. Bb2 {[%clk 0:02:47]}  b5 {[%clk 0:02:56]} 12. axb5 {[%clk 0:02:47]}  axb5 {[%clk 0:02:54]} 13. Rxa8+ {[%clk 0:02:46]}  Bxa8 {[%clk 0:02:55]} 14. Bf1 {[%clk 0:02:46]}  b4 {[%clk 0:02:52]} 15. Na4 {[%clk 0:02:44]}  exd4 {[%clk 0:02:52]} 16. Nxd4 {[%clk 0:02:41]}  O-O {[%clk 0:02:48]} 17. Nf5 {[%clk 0:02:40]}  Re8 {[%clk 0:02:48]} 18. Nxe7+ {[%clk 0:02:36]}  Rxe7 {[%clk 0:02:49]} 19. f3 {[%clk 0:02:36]}  c5 {[%clk 0:02:46]} 20. Bc1 {[%clk 0:02:29]}  Bc6 {[%clk 0:02:42]} 21. Nb2 {[%clk 0:02:27]}  h6 {[%clk 0:02:38]} 22. Nc4 {[%clk 0:02:23]}  d5 {[%clk 0:02:38]} 23. exd5 {[%clk 0:02:23]}  Rxe1 {[%clk 0:02:36]} 24. Qxe1 {[%clk 0:02:21]}  Bxd5 {[%clk 0:02:37]} 25. Bd3 {[%clk 0:01:59]}  Be6 {[%clk 0:02:24]} 26. Bb2 {[%clk 0:01:57]}  Nd5 {[%clk 0:02:23]} 27. Qe4 {[%clk 0:01:42]}  N7f6 {[%clk 0:02:22]} 28. Qe5 {[%clk 0:01:42]}  Qa7 {[%clk 0:02:17]} 29. Kh2 {[%clk 0:01:39]}  Nd7 {[%clk 0:02:16]} 30. Qxg7# {[%clk 0:01:38]} 1-0


[Site "https://www.chess.com"]

[Event "Titled Tuesday Blitz May 4 2021"]
[White "Li, Hui"]
[Black "Spata, German"]
[WhiteFideId "15400310"]
[BlackFideId "113026"]
[WhiteElo "1954"]
[BlackElo "2238"]
[Result "1-0"]
[Round "06"]
[TimeControl "180+1"]
[Date "2021.05.04"]
[WhiteClock "0:00:07"]
[BlackClock "0:00:05"]

1. e4 {[%clk 0:03:00]}  Nf6 {[%clk 0:02:59]} 2. e5 {[%clk 0:03:00]}  Nd5 {[%clk 0:02:59]} 3. d4 {[%clk 0:03:01]}  d6 {[%clk 0:02:59]} 4. Nf3 {[%clk 0:03:01]}  dxe5 {[%clk 0:02:59]} 5. Nxe5 {[%clk 0:03:01]}  c6 {[%clk 0:02:59]} 6. Bd3 {[%clk 0:02:39]}  g6 {[%clk 0:02:51]} 7. O-O {[%clk 0:02:17]}  Bg7 {[%clk 0:02:50]} 8. Re1 {[%clk 0:02:08]}  O-O {[%clk 0:02:47]} 9. h3 {[%clk 0:01:52]}  Nd7 {[%clk 0:02:40]} 10. Nxd7 {[%clk 0:01:47]}  Bxd7 {[%clk 0:02:38]} 11. c3 {[%clk 0:01:44]}  Re8 {[%clk 0:02:30]} 12. Nd2 {[%clk 0:01:38]}  Qc7 {[%clk 0:02:16]} 13. Nf3 {[%clk 0:01:36]}  b5 {[%clk 0:02:11]} 14. Bg5 {[%clk 0:01:21]}  Bf6 {[%clk 0:01:55]} 15. Qd2 {[%clk 0:01:12]}  a5 {[%clk 0:01:39]} 16. a3 {[%clk 0:01:08]}  a4 {[%clk 0:01:39]} 17. Bxf6 {[%clk 0:01:04]}  exf6 {[%clk 0:01:39]} 18. Rxe8+ {[%clk 0:01:04]}  Rxe8 {[%clk 0:01:38]} 19. Re1 {[%clk 0:01:04]}  Rxe1+ {[%clk 0:01:34]} 20. Qxe1 {[%clk 0:01:04]}  Kg7 {[%clk 0:01:29]} 21. Bf1 {[%clk 0:00:58]}  Qf4 {[%clk 0:01:26]} 22. Qd2 {[%clk 0:00:49]}  Qd6 {[%clk 0:01:19]} 23. g3 {[%clk 0:00:32]}  Nb6 {[%clk 0:01:12]} 24. Qe3 {[%clk 0:00:22]}  Be6 {[%clk 0:01:10]} 25. h4 {[%clk 0:00:21]}  h5 {[%clk 0:01:09]} 26. Nd2 {[%clk 0:00:15]}  Bf5 {[%clk 0:00:50]} 27. Ne4 {[%clk 0:00:14]}  Bxe4 {[%clk 0:00:44]} 28. Qxe4 {[%clk 0:00:15]}  f5 {[%clk 0:00:44]} 29. Qe3 {[%clk 0:00:13]}  Nd5 {[%clk 0:00:36]} 30. Qe8 {[%clk 0:00:13]}  f4 {[%clk 0:00:34]} 31. Kh2 {[%clk 0:00:10]}  fxg3+ {[%clk 0:00:34]} 32. fxg3 {[%clk 0:00:11]}  Nf6 {[%clk 0:00:31]} 33. Qe1 {[%clk 0:00:07]}  Ng4+ {[%clk 0:00:31]} 34. Kg1 {[%clk 0:00:07]}  Qf6 {[%clk 0:00:13]} 35. Bh3 {[%clk 0:00:06]}  Nh6 {[%clk 0:00:12]} 36. Qe5 {[%clk 0:00:06]}  Qxe5 {[%clk 0:00:11]} 37. dxe5 {[%clk 0:00:07]}  Nf5 {[%clk 0:00:07]} 38. Bxf5 {[%clk 0:00:07]}  gxf5 {[%clk 0:00:07]} 39. Kf2 {[%clk 0:00:07]}  Kf8 {[%clk 0:00:04]} 40. Ke3 {[%clk 0:00:07]}  Ke7 {[%clk 0:00:04]} 41. Kf4 {[%clk 0:00:06]}  Ke6 {[%clk 0:00:05]} 42. Kg5 {[%clk 0:00:07]}  Kxe5 {[%clk 0:00:04]} 43. Kxh5 {[%clk 0:00:07]}  f4 {[%clk 0:00:03]} 44. gxf4+ {[%clk 0:00:07]}  Kxf4 {[%clk 0:00:04]} 45. Kh6 {[%clk 0:00:07]}  Kg4 {[%clk 0:00:04]} 46. Kg7 {[%clk 0:00:07]}  Kxh4 {[%clk 0:00:04]} 47. Kxf7 {[%clk 0:00:07]}  Kg4 {[%clk 0:00:05]} 48. Ke6 {[%clk 0:00:07]}  Kf4 {[%clk 0:00:05]} 49. Kd6 {[%clk 0:00:07]} 1-0


[Site "https://www.chess.com"]

[Event "Titled Tuesday Blitz May 4 2021"]
[White "Luberanski, Jakub"]
[Black "Kiseljova, Marya"]
[WhiteFideId "21830509"]
[BlackFideId "4155009"]
[WhiteElo "2078"]
[BlackElo "1797"]
[Result "1-0"]
[Round "06"]
[TimeControl "180+1"]
[Date "2021.05.04"]
[WhiteClock "0:00:51"]
[BlackClock "0:00:16"]

1. e4 {[%clk 0:03:00]}  c5 {[%clk 0:02:59]} 2. Nf3 {[%clk 0:03:00]}  Nc6 {[%clk 0:02:58]} 3. g3 {[%clk 0:03:00]}  g6 {[%clk 0:02:57]} 4. Bg2 {[%clk 0:03:01]}  Bg7 {[%clk 0:02:58]} 5. O-O {[%clk 0:03:01]}  e6 {[%clk 0:02:57]} 6. d3 {[%clk 0:03:02]}  Nge7 {[%clk 0:02:56]} 7. c3 {[%clk 0:03:02]}  O-O {[%clk 0:02:55]} 8. d4 {[%clk 0:03:02]}  cxd4 {[%clk 0:02:42]} 9. cxd4 {[%clk 0:03:03]}  d5 {[%clk 0:02:40]} 10. e5 {[%clk 0:03:03]}  Nf5 {[%clk 0:02:38]} 11. Nc3 {[%clk 0:03:03]}  Bd7 {[%clk 0:02:34]} 12. Be3 {[%clk 0:02:58]}  Rc8 {[%clk 0:02:30]} 13. Rc1 {[%clk 0:02:57]}  Qa5 {[%clk 0:02:25]} 14. Qd2 {[%clk 0:02:49]}  Nce7 {[%clk 0:02:11]} 15. Bg5 {[%clk 0:02:27]}  Bb5 {[%clk 0:02:01]} 16. Nxb5 {[%clk 0:02:15]}  Qxb5 {[%clk 0:01:58]} 17. g4 {[%clk 0:02:11]}  h6 {[%clk 0:01:51]} 18. Bf6 {[%clk 0:01:55]}  Nc6 {[%clk 0:01:23]} 19. gxf5 {[%clk 0:01:53]}  exf5 {[%clk 0:01:15]} 20. Bxg7 {[%clk 0:01:53]}  Kxg7 {[%clk 0:01:16]} 21. Rc5 {[%clk 0:01:49]}  Qa4 {[%clk 0:01:11]} 22. b3 {[%clk 0:01:47]}  Qa6 {[%clk 0:01:04]} 23. Rxd5 {[%clk 0:01:40]}  Qb6 {[%clk 0:00:52]} 24. Rd6 {[%clk 0:01:35]}  Qb5 {[%clk 0:00:47]} 25. Rc1 {[%clk 0:01:29]}  Rfd8 {[%clk 0:00:33]} 26. Bf1 {[%clk 0:01:07]}  Qb6 {[%clk 0:00:28]} 27. d5 {[%clk 0:01:05]}  Rxd6 {[%clk 0:00:27]} 28. exd6 {[%clk 0:01:05]}  Nd4 {[%clk 0:00:22]} 29. Qxd4+ {[%clk 0:00:54]}  Qxd4 {[%clk 0:00:19]} 30. Nxd4 {[%clk 0:00:55]}  Rxc1 {[%clk 0:00:19]} 31. d7 {[%clk 0:00:55]}  f4 {[%clk 0:00:15]} 32. d8=Q {[%clk 0:00:55]}  f3 {[%clk 0:00:16]} 33. Nxf3 {[%clk 0:00:51]}  Rd1 {[%clk 0:00:16]} 34. d6 {[%clk 0:00:51]} 1-0


[Site "https://www.chess.com"]

[Event "Titled Tuesday Blitz May 4 2021"]
[White "Manolache, Marius"]
[Black "Meneses Gonzalez, Kevin Moises"]
[WhiteFideId "1201530"]
[BlackFideId "2284502"]
[WhiteElo "2391"]
[BlackElo "2301"]
[Result "1-0"]
[Round "06"]
[TimeControl "180+1"]
[Date "2021.05.04"]
[WhiteClock "0:01:29"]
[BlackClock "0:00:20"]

1. d4 {[%clk 0:03:00]}  Nf6 {[%clk 0:02:59]} 2. Bg5 {[%clk 0:03:00]}  Ne4 {[%clk 0:02:59]} 3. Bf4 {[%clk 0:03:00]}  c5 {[%clk 0:03:00]} 4. d5 {[%clk 0:03:00]}  d6 {[%clk 0:02:52]} 5. f3 {[%clk 0:03:00]}  Qa5+ {[%clk 0:02:52]} 6. c3 {[%clk 0:02:59]}  Nf6 {[%clk 0:02:51]} 7. e4 {[%clk 0:02:58]}  Qb6 {[%clk 0:02:50]} 8. Nd2 {[%clk 0:02:54]}  g6 {[%clk 0:02:44]} 9. Nc4 {[%clk 0:02:54]}  Qc7 {[%clk 0:02:44]} 10. a4 {[%clk 0:02:53]}  Bg7 {[%clk 0:02:44]} 11. Qd2 {[%clk 0:02:53]}  O-O {[%clk 0:02:44]} 12. Bh6 {[%clk 0:02:53]}  Nbd7 {[%clk 0:02:32]} 13. Bxg7 {[%clk 0:02:52]}  Kxg7 {[%clk 0:02:32]} 14. h4 {[%clk 0:02:51]}  h5 {[%clk 0:02:23]} 15. Nh3 {[%clk 0:02:49]}  Nb6 {[%clk 0:02:20]} 16. Ng5 {[%clk 0:02:46]}  Nxc4 {[%clk 0:01:50]} 17. Bxc4 {[%clk 0:02:45]}  Rb8 {[%clk 0:01:50]} 18. O-O {[%clk 0:02:43]}  Bd7 {[%clk 0:01:43]} 19. Rfe1 {[%clk 0:02:38]}  b5 {[%clk 0:01:38]} 20. axb5 {[%clk 0:02:37]}  Bxb5 {[%clk 0:01:38]} 21. Bxb5 {[%clk 0:02:32]}  Rxb5 {[%clk 0:01:39]} 22. Re2 {[%clk 0:02:31]}  Rfb8 {[%clk 0:01:39]} 23. Ra2 {[%clk 0:02:30]}  Qb6 {[%clk 0:01:28]} 24. Kh2 {[%clk 0:02:28]}  a5 {[%clk 0:01:20]} 25. Qf4 {[%clk 0:02:11]}  Qc7 {[%clk 0:01:11]} 26. g4 {[%clk 0:02:03]}  hxg4 {[%clk 0:01:08]} 27. fxg4 {[%clk 0:02:04]}  Rh8 {[%clk 0:01:09]} 28. Kg2 {[%clk 0:02:04]}  Rxh4 {[%clk 0:01:04]} 29. Kg3 {[%clk 0:02:00]}  Rxg4+ {[%clk 0:01:04]} 30. Qxg4 {[%clk 0:02:00]}  Nxg4 {[%clk 0:01:05]} 31. Kxg4 {[%clk 0:02:00]}  Qd7+ {[%clk 0:01:03]} 32. Kf4 {[%clk 0:02:00]}  Rb8 {[%clk 0:00:52]} 33. Rh2 {[%clk 0:01:58]}  Kf6 {[%clk 0:00:41]} 34. Rh7 {[%clk 0:01:50]}  Rf8 {[%clk 0:00:40]} 35. b3 {[%clk 0:01:39]}  Qc7 {[%clk 0:00:37]} 36. Rf2 {[%clk 0:01:33]}  c4 {[%clk 0:00:27]} 37. e5+ {[%clk 0:01:29]}  dxe5+ {[%clk 0:00:20]} 38. Kg4# {[%clk 0:01:29]} 1-0


[Site "https://www.chess.com"]

[Event "Titled Tuesday Blitz May 4 2021"]
[White "Manukyan, Artyom"]
[Black "Janaszak, Dawid"]
[WhiteFideId "13305786"]
[BlackFideId "1119206"]
[WhiteElo "2034"]
[BlackElo "2332"]
[Result "0-1"]
[Round "06"]
[TimeControl "180+1"]
[Date "2021.05.04"]
[WhiteClock "0:00:04"]
[BlackClock "0:00:08"]

1. e4 {[%clk 0:03:00]}  c5 {[%clk 0:03:00]} 2. Nc3 {[%clk 0:03:00]}  Nc6 {[%clk 0:02:53]} 3. Bb5 {[%clk 0:03:00]}  Nd4 {[%clk 0:02:50]} 4. Nf3 {[%clk 0:03:00]}  e6 {[%clk 0:02:50]} 5. O-O {[%clk 0:03:00]}  a6 {[%clk 0:02:50]} 6. Bd3 {[%clk 0:03:00]}  Nc6 {[%clk 0:02:50]} 7. b3 {[%clk 0:03:00]}  Nge7 {[%clk 0:02:42]} 8. Bb2 {[%clk 0:02:59]}  Ng6 {[%clk 0:02:42]} 9. Re1 {[%clk 0:02:55]}  Be7 {[%clk 0:02:42]} 10. e5 {[%clk 0:02:55]}  O-O {[%clk 0:02:23]} 11. Ne4 {[%clk 0:02:54]}  d5 {[%clk 0:02:14]} 12. exd6 {[%clk 0:02:53]}  Bxd6 {[%clk 0:02:15]} 13. Nxd6 {[%clk 0:02:43]}  Qxd6 {[%clk 0:02:16]} 14. Qe2 {[%clk 0:02:43]}  b5 {[%clk 0:02:10]} 15. Ng5 {[%clk 0:02:20]}  e5 {[%clk 0:01:18]} 16. Qh5 {[%clk 0:02:06]}  h6 {[%clk 0:01:18]} 17. Ne4 {[%clk 0:01:25]}  Qe7 {[%clk 0:01:15]} 18. g3 {[%clk 0:01:25]}  Nb4 {[%clk 0:00:57]} 19. Rac1 {[%clk 0:00:54]}  Bb7 {[%clk 0:00:57]} 20. Bf1 {[%clk 0:00:49]}  Nxa2 {[%clk 0:00:57]} 21. Ra1 {[%clk 0:00:40]}  Nb4 {[%clk 0:00:58]} 22. Rac1 {[%clk 0:00:40]}  Rad8 {[%clk 0:00:56]} 23. d3 {[%clk 0:00:36]}  Nc6 {[%clk 0:00:45]} 24. Bg2 {[%clk 0:00:36]}  Nd4 {[%clk 0:00:40]} 25. Ba3 {[%clk 0:00:35]}  b4 {[%clk 0:00:39]} 26. Bb2 {[%clk 0:00:36]}  Rc8 {[%clk 0:00:27]} 27. h4 {[%clk 0:00:32]}  Qe6 {[%clk 0:00:24]} 28. Kh2 {[%clk 0:00:25]}  Ba8 {[%clk 0:00:19]} 29. Bh3 {[%clk 0:00:12]}  f5 {[%clk 0:00:20]} 30. Nd2 {[%clk 0:00:13]}  Qd5 {[%clk 0:00:17]} 31. Qxg6 {[%clk 0:00:08]}  Rf6 {[%clk 0:00:14]} 32. Qh5 {[%clk 0:00:07]}  Rcf8 {[%clk 0:00:13]} 33. Bxd4 {[%clk 0:00:06]}  cxd4 {[%clk 0:00:13]} 34. Qe2 {[%clk 0:00:06]}  a5 {[%clk 0:00:11]} 35. Qxe5 {[%clk 0:00:06]}  Qd8 {[%clk 0:00:09]} 36. Nc4 {[%clk 0:00:03]}  f4 {[%clk 0:00:10]} 37. g4 {[%clk 0:00:03]}  a4 {[%clk 0:00:07]} 38. Qe7 {[%clk 0:00:03]}  Qb8 {[%clk 0:00:06]} 39. bxa4 {[%clk 0:00:03]}  f3+ {[%clk 0:00:07]} 40. Kg1 {[%clk 0:00:03]}  Qf4 {[%clk 0:00:07]} 41. Qe4 {[%clk 0:00:03]}  Bxe4 {[%clk 0:00:06]} 42. dxe4 {[%clk 0:00:04]}  d3 {[%clk 0:00:06]} 43. cxd3 {[%clk 0:00:04]}  b3 {[%clk 0:00:07]} 44. Ne3 {[%clk 0:00:05]}  Qb8 {[%clk 0:00:06]} 45. Rb1 {[%clk 0:00:05]}  b2 {[%clk 0:00:07]} 46. Red1 {[%clk 0:00:06]}  Rf4 {[%clk 0:00:06]} 47. Rd2 {[%clk 0:00:06]}  Qb4 {[%clk 0:00:07]} 48. Rdxb2 {[%clk 0:00:06]}  Qxa4 {[%clk 0:00:07]} 49. Rb7 {[%clk 0:00:07]}  Qa6 {[%clk 0:00:07]} 50. R1b3 {[%clk 0:00:06]}  Qa1+ {[%clk 0:00:07]} 51. Rb1 {[%clk 0:00:07]}  Qa8 {[%clk 0:00:07]} 52. R7b3 {[%clk 0:00:07]}  Qd8 {[%clk 0:00:06]} 53. Nd5 {[%clk 0:00:08]}  Qxh4 {[%clk 0:00:06]} 54. Nxf4 {[%clk 0:00:07]}  Rxf4 {[%clk 0:00:07]} 55. Rb8+ {[%clk 0:00:06]}  Kh7 {[%clk 0:00:08]} 56. Kh2 {[%clk 0:00:04]}  Qxf2+ {[%clk 0:00:08]} 57. Kh1 {[%clk 0:00:04]}  Qg3 {[%clk 0:00:08]} 0-1


[Site "https://www.chess.com"]

[Event "Titled Tuesday Blitz May 4 2021"]
[White "Matthiesen, Martin"]
[Black "Chabris, Christopher"]
[WhiteFideId "1404067"]
[BlackFideId "2005263"]
[WhiteElo "2337"]
[BlackElo "2280"]
[Result "1-0"]
[Round "06"]
[TimeControl "180+1"]
[Date "2021.05.04"]
[WhiteClock "0:00:13"]
[BlackClock "0:00:04"]

1. d4 {[%clk 0:03:00]}  d5 {[%clk 0:02:59]} 2. c4 {[%clk 0:03:00]}  c6 {[%clk 0:02:59]} 3. Nc3 {[%clk 0:02:59]}  Nf6 {[%clk 0:02:59]} 4. e3 {[%clk 0:02:58]}  e6 {[%clk 0:02:53]} 5. Nf3 {[%clk 0:02:57]}  Nbd7 {[%clk 0:02:52]} 6. Be2 {[%clk 0:02:57]}  dxc4 {[%clk 0:02:50]} 7. a4 {[%clk 0:02:56]}  Bb4 {[%clk 0:02:47]} 8. Nd2 {[%clk 0:02:51]}  e5 {[%clk 0:02:33]} 9. Nxc4 {[%clk 0:02:50]}  exd4 {[%clk 0:02:30]} 10. Qxd4 {[%clk 0:02:28]}  O-O {[%clk 0:02:29]} 11. O-O {[%clk 0:02:23]}  Qe7 {[%clk 0:02:24]} 12. Rd1 {[%clk 0:02:19]}  Bc5 {[%clk 0:02:16]} 13. Qh4 {[%clk 0:01:48]}  Re8 {[%clk 0:02:09]} 14. b3 {[%clk 0:01:44]}  Nf8 {[%clk 0:01:56]} 15. Ba3 {[%clk 0:01:25]}  Ng6 {[%clk 0:01:53]} 16. Bxc5 {[%clk 0:01:24]}  Qxc5 {[%clk 0:01:50]} 17. Qd4 {[%clk 0:01:23]}  Qg5 {[%clk 0:01:47]} 18. Nd6 {[%clk 0:00:59]}  Bh3 {[%clk 0:01:27]} 19. g3 {[%clk 0:00:58]}  Rad8 {[%clk 0:01:21]} 20. f4 {[%clk 0:00:40]}  Qh6 {[%clk 0:01:00]} 21. Nxe8 {[%clk 0:00:21]}  Rxd4 {[%clk 0:00:41]} 22. Nxf6+ {[%clk 0:00:21]}  gxf6 {[%clk 0:00:41]} 23. Rxd4 {[%clk 0:00:22]}  Be6 {[%clk 0:00:35]} 24. b4 {[%clk 0:00:20]}  Qh3 {[%clk 0:00:32]} 25. Bf3 {[%clk 0:00:17]}  Nh4 {[%clk 0:00:23]} 26. Bh1 {[%clk 0:00:17]}  Nf5 {[%clk 0:00:20]} 27. Rd3 {[%clk 0:00:16]}  Nxg3 {[%clk 0:00:15]} 28. hxg3 {[%clk 0:00:16]}  Qxg3+ {[%clk 0:00:15]} 29. Bg2 {[%clk 0:00:16]}  h5 {[%clk 0:00:11]} 30. Ne4 {[%clk 0:00:15]}  Qg6 {[%clk 0:00:07]} 31. Kf2 {[%clk 0:00:14]}  Bd5 {[%clk 0:00:04]} 32. Rg1 {[%clk 0:00:13]} 1-0


[Site "https://www.chess.com"]